fUST/lending_fUST_20240916
["ID","MTS","AMOUNT","RATE_DAILY","PERIOD"]
[338269943,1726469439611,-151.0,0.00021897,2]
[338269944,1726469439621,-151.0,0.00021897,2]
[338269945,1726469439630,-151.0,0.00021897,2]
[338269946,1726469439640,-151.0,0.00021897,2]
[338269947,1726469439650,-151.0,0.00021897,2]
[338269948,1726469439659,-151.0,0.00021897,2]
[338269949,1726469439669,-186.01304692,0.00021907,7]
[338269950,1726469439678,-148821.66923651,0.00021907,3]
[338269951,1726469439699,-8587.27219,0.00021907,3]
[338269952,1726469439711,-6076.45071744,0.00021907,3]
[338269955,1726469440696,-351.46864605,0.00021907,3]
[338269956,1726469440706,-151.0,0.00021907,2]
[338269957,1726469440715,-153.668962,0.00021907,2]
[338269958,1726469440725,-151.776515,0.00021907,2]
[338269959,1726469440734,-151.0,0.00021907,2]
[338269960,1726469440743,-151.0,0.00021907,2]
[338269961,1726469440753,-161.78751,0.00021907,2]
[338269962,1726469440762,-195.418172,0.00021907,2]
[338269963,1726469440771,-161.78751,0.00021907,2]
[338269964,1726469440782,-163.029151,0.00021907,2]
[338269965,1726469440792,-151.0,0.00021907,2]
[338269966,1726469440801,-152.264487,0.00021907,2]
[338269967,1726469440811,-396.644467,0.00021907,2]
[338269968,1726469440821,-396.644467,0.00021907,2]
[338269969,1726469440830,-159.919216,0.00021907,2]
[338269970,1726469440840,-151.0,0.00021907,2]
[338269971,1726469440853,-225.752217,0.00021907,2]
[338269972,1726469440862,-151.0,0.00021907,2]
[338269973,1726469440871,-296.654371,0.00021907,2]
[338269974,1726469440881,-151.0,0.00021907,2]
[338269975,1726469440890,-156.348928,0.00021907,2]
[338269976,1726469440899,-151.0,0.00021907,2]
[338269977,1726469440909,-151.0,0.00021907,2]
[338269978,1726469440919,-151.0,0.00021907,2]
[338269979,1726469440928,-151.0,0.00021907,2]
[338269980,1726469440938,-151.0,0.00021907,2]
[338269981,1726469440948,-1407.07814864,0.00021916,2]
[338269982,1726469440957,-500.0,0.00021917,2]
[338269983,1726469440967,-501.21640284,0.00021917,2]
[338269984,1726469440977,-500.0,0.00021917,2]
[338269985,1726469440987,-500.0,0.00021917,2]
[338269986,1726469440997,-500.0,0.00021917,2]
[338269987,1726469441007,-500.0,0.00021917,2]
[338269988,1726469441016,-500.0,0.00021917,2]
[338269989,1726469441026,-500.0,0.00021917,2]
[338269990,1726469441036,-500.0,0.00021917,2]
[338269991,1726469441046,-500.0,0.00021917,2]
[338269992,1726469441055,-559.31746528,0.00021917,2]
[338269993,1726469441065,-151.0,0.00021917,2]
[338269994,1726469441076,-501.87713199,0.00021917,2]
[338269995,1726469441085,-500.0,0.00021917,2]
[338269996,1726469441094,-500.0,0.00021917,2]
[338269997,1726469441112,-500.0,0.00021917,2]
[338269998,1726469441121,-500.0,0.00021917,2]
[338269999,1726469441131,-500.0,0.00021917,2]
[338270000,1726469441141,-990.25,0.00021917,2]
[338270001,1726469441151,-294.92487963,0.00021917,2]
[338270002,1726469441160,-500.0,0.00021917,2]
[338270003,1726469441170,-500.0,0.00021917,2]
[338270004,1726469441179,-500.0,0.00021917,2]
[338270005,1726469441189,-500.0,0.00021917,2]
[338270006,1726469441202,-775.53,0.00021917,2]
[338270007,1726469441211,-501.83934718,0.00021917,2]
[338270008,1726469441221,-500.0,0.00021917,2]
[338270009,1726469441230,-500.0,0.00021917,2]
[338270010,1726469441240,-1432.49,0.00021917,2]
[338270011,1726469441250,-500.0,0.00021917,2]
[338270012,1726469441259,-500.0,0.00021917,2]
[338270013,1726469441269,-500.0,0.00021917,2]
[338270014,1726469441280,-548.70663045,0.00021917,2]
[338270015,1726469441290,-500.0,0.00021917,2]
[338270016,1726469441299,-500.0,0.00021917,2]
[338270017,1726469441308,-500.0,0.00021917,2]
[338270018,1726469441319,-500.0,0.00021917,2]
[338270019,1726469441329,-588.5,0.00021917,2]
[338270020,1726469441338,-500.0,0.00021917,2]
[338270021,1726469441348,-500.0,0.00021917,2]
[338270022,1726469441357,-500.0,0.00021917,2]
[338270023,1726469441367,-500.0,0.00021917,2]
[338270024,1726469441377,-1134.97,0.00021917,2]
[338270025,1726469441386,-500.0,0.00021917,2]
[338270026,1726469441396,-1134.97,0.00021917,2]
[338270027,1726469441406,-1134.97,0.00021917,2]
[338270028,1726469441416,-500.0,0.00021917,2]
[338270029,1726469441425,-1134.97,0.00021917,2]
[338270030,1726469441435,-1134.97,0.00021917,2]
[338270031,1726469441446,-1134.97,0.00021917,2]
[338270032,1726469441455,-1134.97,0.00021917,2]
[338270033,1726469441465,-1134.97,0.00021917,2]
[338270034,1726469441475,-1134.97,0.00021917,2]
[338270035,1726469441484,-1134.97,0.00021917,2]
[338270036,1726469441494,-1134.97,0.00021917,2]
[338270037,1726469441503,-502.87570901,0.00021917,2]
[338270038,1726469441512,-1134.97,0.00021917,2]
[338270039,1726469441521,-1134.97,0.00021917,2]
[338270040,1726469441530,-1134.97,0.00021917,2]
[338270041,1726469441540,-1134.97,0.00021917,2]
[338270042,1726469441549,-1134.97,0.00021917,2]
[338270043,1726469441559,-500.0,0.00021917,2]
[338270044,1726469441568,-500.0,0.00021917,2]
[338270045,1726469441578,-1134.97,0.00021917,2]
[338270046,1726469441587,-1134.97,0.00021917,2]
[338270047,1726469441597,-1134.97,0.00021917,2]
[338270048,1726469441606,-1134.97,0.00021917,2]
[338270049,1726469441615,-1134.97,0.00021917,2]
[338270050,1726469441626,-586.20448624,0.00021917,2]
[338270051,1726469441635,-1134.97,0.00021917,2]
[338270052,1726469441644,-1134.97,0.00021917,2]
[338270053,1726469441654,-1135.16176307,0.00021917,2]
[338270054,1726469441663,-500.0,0.00021917,2]
[338270055,1726469441673,-500.0,0.00021917,2]
[338270056,1726469441682,-500.0,0.00021917,2]
[338270057,1726469441691,-500.0,0.00021917,2]
[338270058,1726469441700,-500.0,0.00021917,2]
[338270059,1726469441710,-500.0,0.00021917,2]
[338270060,1726469441719,-500.0,0.00021917,2]
[338270061,1726469441729,-381.98269071,0.00021917,2]
[338270062,1726469441739,-500.0,0.00021917,2]
[338270063,1726469441748,-500.0,0.00021917,2]
[338270064,1726469441758,-500.0,0.00021917,2]
[338270065,1726469441768,-500.0,0.00021917,2]
[338270066,1726469441778,-500.0,0.00021917,2]
[338270067,1726469441787,-510.18407007,0.00021917,2]
[338270068,1726469441798,-500.0,0.00021917,2]
[338270069,1726469441807,-500.0,0.00021917,2]
[338270070,1726469441817,-739.0,0.00021917,2]
[338270071,1726469441827,-1142.29,0.00021917,2]
[338270072,1726469441836,-500.0,0.00021917,2]
[338270073,1726469441846,-784.81,0.00021917,2]
[338270074,1726469441856,-577.28958153,0.00021917,2]
[338270075,1726469441865,-484.66903566,0.00021917,2]
[338270076,1726469441875,-634.82,0.00021917,2]
[338270077,1726469441885,-500.0,0.00021917,2]
[338270078,1726469441894,-500.0,0.00021917,2]
[338270079,1726469441904,-500.0,0.00021917,2]
[338270080,1726469441914,-500.0,0.00021917,2]
[338270081,1726469441923,-500.0,0.00021917,2]
[338270082,1726469441932,-585.88,0.00021917,2]
[338270083,1726469441942,-500.0,0.00021917,2]
[338270084,1726469441951,-500.0,0.00021917,2]
[338270085,1726469441961,-500.0,0.00021917,2]
[338270086,1726469441971,-500.0,0.00021917,2]
[338270087,1726469441981,-500.0,0.00021917,2]
[338270088,1726469441992,-500.0,0.00021917,2]
[338270089,1726469442002,-500.0,0.00021917,2]
[338270090,1726469442012,-500.0,0.00021917,2]
[338270091,1726469442022,-500.0,0.00021917,2]
[338270092,1726469442032,-500.54526337,0.00021917,2]
[338270093,1726469442041,-500.0,0.00021917,2]
[338270094,1726469442051,-500.0,0.00021917,2]
[338270095,1726469442061,-500.0,0.00021917,2]
[338270096,1726469442070,-500.0,0.00021917,2]
[338270097,1726469442080,-500.0,0.00021917,2]
[338270098,1726469442089,-500.0,0.00021917,2]
[338270099,1726469442099,-1082.55,0.00021917,2]
[338270100,1726469442108,-500.0,0.00021917,2]
[338270101,1726469442118,-500.0,0.00021917,2]
[338270102,1726469442128,-33.2879464,0.00021917,2]
[338270110,1726469443504,-151.0,0.00021897,2]
[338270111,1726469443514,-151.0,0.00021907,2]
[338270112,1726469443523,-466.7120536,0.00021917,2]
[338270113,1726469443532,-2239.68,0.00021917,2]
[338270114,1726469443542,-500.0,0.00021917,2]
[338270115,1726469443551,-815.33,0.00021917,2]
[338270116,1726469443561,-500.0,0.00021917,2]
[338270117,1726469443571,-500.0,0.00021917,2]
[338270118,1726469443580,-500.0,0.00021917,2]
[338270119,1726469443589,-500.0,0.00021917,2]
[338270120,1726469443599,-500.0,0.00021917,2]
[338270121,1726469443608,-500.0,0.00021917,2]
[338270122,1726469443618,-818.93,0.00021917,2]
[338270123,1726469443627,-500.0,0.00021917,2]
[338270124,1726469443637,-500.72627897,0.00021917,2]
[338270125,1726469443646,-910.95428104,0.00021917,2]
[338270126,1726469443663,-55.39571896,0.00021917,2]
[338270127,1726469443673,-500.0,0.00021917,2]
[338270128,1726469443683,-500.0,0.00021917,2]
[338270129,1726469443692,-905.27,0.00021917,2]
[338270130,1726469443702,-500.0,0.00021917,2]
[338270131,1726469443711,-502.32995875,0.00021917,2]
[338270132,1726469443721,-500.0,0.00021917,2]
[338270133,1726469443731,-690.87,0.00021917,2]
[338270134,1726469443741,-500.0,0.00021917,2]
[338270135,1726469443750,-500.0,0.00021917,2]
[338270136,1726469443760,-500.0,0.00021917,2]
[338270137,1726469443770,-500.0,0.00021917,2]
[338270138,1726469443779,-779.94,0.00021917,2]
[338270139,1726469443788,-500.0,0.00021917,2]
[338270140,1726469443798,-500.0,0.00021917,2]
[338270141,1726469443807,-990.17,0.00021917,2]
[338270142,1726469443816,-500.0,0.00021917,2]
[338270143,1726469443826,-760.43,0.00021917,2]
[338270144,1726469443835,-627.48,0.00021917,2]
[338270145,1726469443845,-3142.75,0.00021917,2]
[338270146,1726469443855,-741.04,0.00021917,2]
[338270147,1726469443864,-500.0,0.00021917,2]
[338270148,1726469443873,-500.0,0.00021917,2]
[338270149,1726469443883,-151.0,0.00021917,2]
[338270150,1726469443892,-500.85047699,0.00021917,2]
[338270151,1726469443902,-154.482858,0.00021917,2]
[338270152,1726469443911,-500.0,0.00021917,2]
[338270153,1726469443920,-500.0,0.00021917,2]
[338270154,1726469443929,-1252.0,0.00021917,2]
[338270155,1726469443938,-639.01,0.00021917,2]
[338270156,1726469443948,-500.0,0.00021917,2]
[338270157,1726469443958,-277.78311498,0.00021917,2]
[338270158,1726469443971,-222.21688502,0.00021917,2]
[338270159,1726469443981,-500.0,0.00021917,2]
[338270160,1726469443991,-152.093818,0.00021917,2]
[338270161,1726469444001,-500.0,0.00021917,2]
[338270162,1726469444010,-500.0,0.00021917,2]
[338270163,1726469444019,-500.47169361,0.00021917,2]
[338270164,1726469444029,-500.0,0.00021917,2]
[338270165,1726469444038,-500.0,0.00021917,2]
[338270166,1726469444048,-500.0,0.00021917,2]
[338270167,1726469444057,-644.7,0.00021917,2]
[338270168,1726469444067,-827.75,0.00021917,2]
[338270169,1726469444077,-500.0,0.00021917,2]
[338270170,1726469444087,-1075.83,0.00021917,2]
[338270171,1726469444096,-202.72082693,0.00021917,2]
[338270172,1726469444109,-297.27917307,0.00021917,2]
[338270173,1726469444119,-500.0,0.00021917,2]
[338270174,1726469444129,-500.0,0.00021917,2]
[338270175,1726469444139,-500.0,0.00021917,2]
[338270176,1726469444148,-171.87606563,0.00021917,2]
[338270177,1726469444160,-328.12393437,0.00021917,2]
[338270178,1726469444170,-255.95299729,0.00021917,2]
[338270181,1726469446559,-150.0,0.00021764,2]
[338270182,1726469446569,-111.81,0.00021884,2]
[338270183,1726469547212,6247.0,0.00014,2]
[338270186,1726469647628,171.53257,0.00013699,2]
[338270188,1726470243302,171.53257,0.00013699,2]
[338270189,1726470561172,-229.7376926,0.00019119,2]
[338270190,1726470561196,-165.511685,0.00019165,2]
[338270191,1726470561218,-165.511685,0.00019232,2]
[338270192,1726470561240,-165.511685,0.00019298,2]
[338270193,1726470561262,-7.40780742,0.00019365,2]
[338270212,1726470632575,-158.10387758,0.00019365,2]
[338270213,1726470632585,-165.511685,0.00019431,2]
[338270214,1726470632595,-165.511685,0.00019498,2]
[338270215,1726470632604,-165.511685,0.00019564,2]
[338270216,1726470632614,-6880.40145118,0.00019582,2]
[338270217,1726470632624,-165.511685,0.00019631,2]
[338270218,1726470632633,-165.511685,0.00019698,2]
[338270219,1726470632643,-165.511685,0.00019764,2]
[338270220,1726470632652,-165.511685,0.00019831,2]
[338270221,1726470632661,-300.0,0.00019893,2]
[338270222,1726470632671,-300.0,0.00019893,2]
[338270223,1726470632680,-6880.40145118,0.00019894,2]
[338270224,1726470632691,-165.511685,0.00019897,2]
[338270225,1726470632701,-187.729578,0.00019915,2]
[338270226,1726470632711,-165.511685,0.00019964,2]
[338270227,1726470632720,-2280.65246359,0.00019964,2]
[338270228,1726470632730,-5999.99999901,0.0002,2]
[338270229,1726470632740,-165.511685,0.0002003,2]
[338270230,1726470632749,-24900.0,0.00020057,2]
[338270231,1726470632761,-6880.40145118,0.00020064,2]
[338270232,1726470632772,-165.511685,0.00020097,2]
[338270233,1726470632781,-165.511685,0.00020164,2]
[338270234,1726470632791,-6880.40145118,0.00020284,2]
[338270235,1726470632801,-500.0,0.0002051,30]
[338270236,1726470632811,-500.0,0.0002051,30]
[338270237,1726470632820,-2280.65246352,0.00020526,2]
[338270238,1726470632830,-218.36268642,0.000206,2]
[338270239,1726470632840,-6880.40145118,0.00020742,2]
[338270240,1726470632850,-6880.40145118,0.00020855,2]
[338270241,1726470632860,-167.72610514,0.00020977,2]
[338270242,1726470632870,-625.87,0.0002098,3]
[338270243,1726470632880,-312.94,0.0002098,3]
[338270244,1726470632890,-625.89,0.0002098,3]
[338270245,1726470632901,-500.0,0.00020989,2]
[338270246,1726470632911,-500.0,0.00020989,2]
[338270247,1726470632922,-500.0,0.00020989,2]
[338270248,1726470632932,-500.0,0.00020989,2]
[338270249,1726470632942,-500.0,0.00020989,2]
[338270250,1726470632951,-60195.8091406,0.0002099,3]
[338270251,1726470632961,-9101.38337755,0.0002099,3]
[338270258,1726470638760,-500.0,0.00020989,2]
[338270259,1726470638773,-500.0,0.00020989,2]
[338270260,1726470638783,-500.0,0.00020989,2]
[338270261,1726470638798,-500.0,0.00020989,2]
[338270262,1726470638809,-500.0,0.00020989,2]
[338270263,1726470638819,-461.20407015,0.00020989,2]
[338270264,1726470638828,-473.77919974,0.00020989,2]
[338270265,1726470638839,-517.23580164,0.00020989,2]
[338270266,1726470638848,-500.0,0.00020989,2]
[338270267,1726470638858,-458.0,0.00020989,2]
[338270268,1726470638868,-500.0,0.00020989,2]
[338270269,1726470638877,-500.0,0.00020989,2]
[338270270,1726470638887,-500.0,0.00020989,2]
[338270271,1726470638896,-500.0,0.00020989,2]
[338270272,1726470638906,-500.0,0.00020989,2]
[338270273,1726470638915,-500.0,0.00020989,2]
[338270274,1726470638925,-500.0,0.00020989,2]
[338270275,1726470638934,-500.0,0.00020989,2]
[338270276,1726470638943,-500.0,0.00020989,2]
[338270277,1726470638954,-500.0,0.00020989,2]
[338270278,1726470638963,-500.0,0.00020989,2]
[338270279,1726470638972,-500.0,0.00020989,2]
[338270280,1726470638982,-500.0,0.00020989,2]
[338270281,1726470638991,-500.0,0.00020989,2]
[338270282,1726470639000,-500.0,0.00020989,2]
[338270283,1726470639009,-500.0,0.00020989,2]
[338270284,1726470639019,-500.0,0.00020989,2]
[338270285,1726470639028,-500.0,0.00020989,2]
[338270286,1726470639038,-500.0,0.00020989,2]
[338270287,1726470639048,-500.0,0.00020989,2]
[338270288,1726470639057,-500.0,0.00020989,2]
[338270289,1726470639067,-500.0,0.00020989,2]
[338270290,1726470639077,-500.0,0.00020989,2]
[338270291,1726470639087,-325.39704047,0.00020989,2]
[338270292,1726470639096,-500.0,0.00020989,2]
[338270293,1726470639105,-500.0,0.00020989,2]
[338270294,1726470639115,-1109.76158565,0.0002099,3]
[338270295,1726470639125,-1390.83,0.0002099,3]
[338270296,1726470639134,-695.42,0.0002099,3]
[338270297,1726470639143,-1000.0,0.00021,120]
[338270298,1726470639153,-37356.82446053,0.00021,2]
[338270299,1726470639162,-2280.65246352,0.00021089,2]
[338270300,1726470639172,-6880.40145118,0.00021139,2]
[338270301,1726470639181,-6880.40145118,0.00021381,2]
[338270302,1726470639191,-420.0,0.00021664,2]
[338270303,1726470639201,-17872.95422754,0.00021785,5]
[338270304,1726470639210,-60195.8091406,0.00021786,3]
[338270305,1726470639220,-10211.1449632,0.00021786,3]
[338270306,1726470639230,-1000.0,0.00021797,2]
[338270307,1726470639239,-164.0,0.00021806,2]
[338270308,1726470639249,-2213.15549913,0.00021807,2]
[338270309,1726470639259,-6880.40145121,0.00021812,2]
[338270310,1726470639269,-242.03827679,0.00021875,2]
[338270311,1726470639278,-179.9712737,0.00021875,2]
[338270312,1726470639288,-468.12545992,0.00021875,2]
[338270313,1726470639298,-500.0,0.00021875,2]
[338270314,1726470639308,-169.42679375,0.00021875,2]
[338270315,1726470639317,-60195.8091406,0.00021876,3]
[338270316,1726470639327,-10211.1449632,0.00021876,3]
[338270317,1726470639336,-60195.8091406,0.00021887,3]
[338270318,1726470639346,-10211.1449632,0.00021887,3]
[338270319,1726470639356,-500.0,0.0002189,4]
[338270320,1726470639366,-500.0,0.0002189,4]
[338270321,1726470639375,-500.0,0.0002189,4]
[338270322,1726470639385,-500.0,0.0002189,4]
[338270323,1726470639395,-500.0,0.0002189,4]
[338270324,1726470639406,-500.0,0.0002189,4]
[338270325,1726470639415,-500.0,0.0002189,4]
[338270326,1726470639424,-564.59462197,0.0002189,4]
[338270327,1726470639434,-151.0,0.00021896,2]
[338270328,1726470639444,-151.0,0.00021896,2]
[338270329,1726470639453,-60195.8091406,0.00021896,3]
[338270330,1726470639463,-10211.1449632,0.00021896,3]
[338270331,1726470639473,-186.01304692,0.00021896,7]
[338270332,1726470639482,-30633.4348896,0.00021897,3]
[338270333,1726470639492,-152.952042,0.00021897,2]
[338270334,1726470639502,-189.923399,0.00021897,2]
[338270335,1726470639511,-189.923399,0.00021897,2]
[338270336,1726470639520,-151.0,0.00021897,2]
[338270337,1726470639531,-151.0,0.00021897,2]
[338270338,1726470639541,-151.0,0.00021897,2]
[338270339,1726470639551,-151.0,0.00021897,2]
[338270340,1726470639561,-151.0,0.00021897,2]
[338270341,1726470639571,-151.0,0.00021897,2]
[338270342,1726470639581,-151.0,0.00021897,2]
[338270343,1726470639591,-151.0,0.00021897,2]
[338270344,1726470639601,-151.0,0.00021897,2]
[338270345,1726470639610,-151.0,0.00021897,2]
[338270346,1726470639621,-151.0,0.00021897,2]
[338270347,1726470639631,-157.543064,0.00021897,2]
[338270348,1726470639641,-189.923399,0.00021906,2]
[338270349,1726470639651,-189.923399,0.00021906,2]
[338270350,1726470639661,-151.0,0.00021906,2]
[338270351,1726470639671,-151.0,0.00021906,2]
[338270352,1726470639681,-268.050289,0.00021906,2]
[338270353,1726470639691,-151.0,0.00021906,2]
[338270354,1726470639700,-151.0,0.00021906,2]
[338270355,1726470639710,-151.0,0.00021906,2]
[338270356,1726470639719,-266.02382,0.00021906,2]
[338270357,1726470639729,-151.0,0.00021906,2]
[338270358,1726470639739,-151.0,0.00021906,2]
[338270359,1726470639749,-151.0,0.00021906,2]
[338270360,1726470639758,-151.0,0.00021906,2]
[338270361,1726470639769,-151.0,0.00021906,2]
[338270362,1726470639781,-151.0,0.00021906,2]
[338270363,1726470639791,-122533.739559,0.00021907,3]
[338270364,1726470639800,-189.923399,0.00021907,2]
[338270365,1726470639811,-189.923399,0.00021907,2]
[338270366,1726470639820,-151.0,0.00021907,2]
[338270367,1726470639831,-151.0,0.00021907,2]
[338270368,1726470639840,-151.0,0.00021907,2]
[338270369,1726470639851,-151.0,0.00021907,2]
[338270370,1726470639861,-151.0,0.00021907,2]
[338270371,1726470639870,-151.0,0.00021907,2]
[338270372,1726470639879,-151.0,0.00021907,2]
[338270373,1726470639889,-151.0,0.00021907,2]
[338270374,1726470639898,-157.516704,0.00021907,2]
[338270375,1726470639908,-151.0,0.00021907,2]
[338270376,1726470639918,-151.0,0.00021907,2]
[338270377,1726470639928,-151.0,0.00021907,2]
[338270378,1726470639938,-300.57052922,0.00021916,2]
[338270379,1726470639948,-3486.78314677,0.00021916,2]
[338270380,1726470639957,-595.86508479,0.00021917,5]
[338270381,1726470639967,-500.0,0.00021917,2]
[338270382,1726470639977,-3188.93523682,0.00021917,2]
[338270383,1726470639986,-500.0,0.00021917,2]
[338270384,1726470639996,-153.101223,0.00021917,2]
[338270385,1726470640006,-500.0,0.00021917,2]
[338270386,1726470640016,-500.0,0.00021917,2]
[338270387,1726470640026,-381.64298995,0.00021917,2]
[338270388,1726470640036,-502.27357364,0.00021917,2]
[338270389,1726470640046,-398.32077012,0.00021917,2]
[338270390,1726470640056,-500.0,0.00021917,2]
[338270391,1726470640066,-533.096893,0.00021917,2]
[338270392,1726470640076,-500.0,0.00021917,2]
[338270393,1726470640085,-502.3194619,0.00021917,2]
[338270394,1726470640095,-620.15856516,0.00021917,2]
[338270395,1726470640104,-500.0,0.00021917,2]
[338270396,1726470640114,-500.94402272,0.00021917,2]
[338270397,1726470640123,-500.0,0.00021917,2]
[338270398,1726470640133,-500.0,0.00021917,2]
[338270399,1726470640143,-501.24529178,0.00021917,2]
[338270400,1726470640153,-500.0,0.00021917,2]
[338270401,1726470640163,-500.0,0.00021917,2]
[338270404,1726470640173,-500.0,0.00021917,2]
[338270407,1726470640182,-500.0,0.00021917,2]
[338270409,1726470640192,-500.0,0.00021917,2]
[338270411,1726470640202,-500.0,0.00021917,2]
[338270413,1726470640211,-500.0,0.00021917,2]
[338270415,1726470640221,-500.0,0.00021917,2]
[338270417,1726470640230,-250.0,0.00021917,2]
[338270418,1726470640239,-1176.59,0.00021917,2]
[338270419,1726470640249,-500.47289037,0.00021917,2]
[338270420,1726470640258,-500.0,0.00021917,2]
[338270421,1726470640267,-500.0,0.00021917,2]
[338270422,1726470640277,-500.0,0.00021917,2]
[338270423,1726470640286,-500.0,0.00021917,2]
[338270424,1726470640295,-500.0,0.00021917,2]
[338270425,1726470640305,-500.0,0.00021917,2]
[338270426,1726470640314,-500.0,0.00021917,2]
[338270427,1726470640323,-500.0,0.00021917,2]
[338270428,1726470640332,-152.207928,0.00021917,2]
[338270429,1726470640342,-500.0,0.00021917,2]
[338270430,1726470640352,-500.0,0.00021917,2]
[338270431,1726470640362,-500.0,0.00021917,2]
[338270432,1726470640372,-743.53,0.00021917,2]
[338270433,1726470640382,-500.0,0.00021917,2]
[338270434,1726470640392,-500.0,0.00021917,2]
[338270435,1726470640401,-500.0,0.00021917,2]
[338270436,1726470640411,-500.0,0.00021917,2]
[338270437,1726470640420,-500.0,0.00021917,2]
[338270438,1726470640430,-500.0,0.00021917,2]
[338270439,1726470640440,-1644.62,0.00021917,2]
[338270440,1726470640449,-500.0,0.00021917,2]
[338270441,1726470640459,-500.0,0.00021917,2]
[338270442,1726470640469,-503.3466713,0.00021917,2]
[338270443,1726470640478,-500.0,0.00021917,2]
[338270444,1726470640488,-509.03555022,0.00021917,2]
[338270445,1726470640498,-500.0,0.00021917,2]
[338270446,1726470640508,-876.92,0.00021917,2]
[338270447,1726470640518,-500.0,0.00021917,2]
[338270448,1726470640529,-500.0,0.00021917,2]
[338270449,1726470640538,-500.0,0.00021917,2]
[338270450,1726470640548,-616.46,0.00021917,2]
[338270451,1726470640558,-500.0,0.00021917,2]
[338270452,1726470640567,-500.0,0.00021917,2]
[338270453,1726470640577,-500.0,0.00021917,2]
[338270454,1726470640586,-500.0,0.00021917,2]
[338270455,1726470640596,-500.0,0.00021917,2]
[338270456,1726470640606,-484.66903566,0.00021917,2]
[338270457,1726470640616,-500.0,0.00021917,2]
[338270458,1726470640625,-500.0,0.00021917,2]
[338270459,1726470640636,-263.99671542,0.00021917,2]
[338270460,1726470640645,-500.0,0.00021917,2]
[338270461,1726470640655,-500.0,0.00021917,2]
[338270462,1726470640664,-439.32565726,0.00021917,2]
[338270463,1726470640674,-500.0,0.00021917,2]
[338270464,1726470640683,-503.20909566,0.00021917,2]
[338270465,1726470640692,-563.48677039,0.00021917,2]
[338270466,1726470640702,-500.0,0.00021917,2]
[338270467,1726470640711,-500.0,0.00021917,2]
[338270468,1726470640722,-721.87,0.00021917,2]
[338270469,1726470640732,-500.0,0.00021917,2]
[338270470,1726470640741,-500.0,0.00021917,2]
[338270471,1726470640751,-500.0,0.00021917,2]
[338270472,1726470640760,-151.0,0.00021917,2]
[338270473,1726470640770,-500.0,0.00021917,2]
[338270474,1726470640781,-151.0,0.00021917,2]
[338270475,1726470640790,-151.0,0.00021917,2]
[338270476,1726470640800,-163.2247,0.00021917,2]
[338270477,1726470640809,-500.0,0.00021917,2]
[338270478,1726470640818,-500.0,0.00021917,2]
[338270479,1726470640828,-500.0,0.00021917,2]
[338270480,1726470640837,-500.0,0.00021917,2]
[338270481,1726470640845,-500.0,0.00021917,2]
[338270482,1726470640855,-500.0,0.00021917,2]
[338270483,1726470640864,-500.0,0.00021917,2]
[338270484,1726470640874,-500.0,0.00021917,2]
[338270485,1726470640883,-500.0,0.00021917,2]
[338270486,1726470640893,-753.28,0.00021917,2]
[338270487,1726470640903,-500.0,0.00021917,2]
[338270488,1726470640912,-500.0,0.00021917,2]
[338270489,1726470640922,-500.0,0.00021917,2]